fUSD/lending_fUSD_20241116
["ID","MTS","AMOUNT","RATE_DAILY","PERIOD"]
[342400831,1731795032300,-5200.77,0.0001,2]
[342400832,1731795032311,-1575.8454,0.0001,2]
[342400840,1731795037781,-316.18160699,9.941e-05,2]
[342400841,1731795037792,-775.81839301,9.941e-05,2]
[342400842,1731795037802,-1256689.03665621,0.0001,2]
[342400843,1731795037813,-5002.7318745,0.0001,2]
[342400845,1731795037828,-1243.09786449,0.0001,2]
[342400848,1731795038027,-3320093.75042065,0.0001,2]
[342400849,1731795038075,-2689.20978839,0.0001,2]
[342400850,1731795038092,-2107.99201253,0.0001,2]
[342400851,1731795038104,-18193.2,0.0001,2]
[342400870,1731795039666,-662.68309162,0.0001,2]
[342400871,1731795039678,-1303.06478768,0.0001,2]
[342400872,1731795039690,-1819.585,0.0001,2]
[342400873,1731795039730,-608.2047508,0.0001,2]
[342400874,1731795039742,-702.10483553,0.0001,2]
[342400875,1731795039754,-1412.6889153,0.0001,2]
[342400876,1731795039766,-927.22751103,0.0001,2]
[342400877,1731795039885,-8474.18,0.0001,2]
[342400878,1731795039940,-6821.03671273,0.0001,2]
[342400907,1731795042829,-6332.83181055,0.0001,2]
[342400908,1731795042840,-4981.99218465,0.0001,2]
[342400909,1731795043062,-1383.80709951,0.0001,2]
[342400910,1731795043074,-683.1034336,0.0001,2]
[342400911,1731795043085,-1208.59634391,0.0001,2]
[342400912,1731795043097,-3042.66693532,0.0001,2]
[342400913,1731795043131,-468.59532,0.0001,2]
[342400914,1731795043143,-4560.5854943,0.0001,2]
[342400915,1731795043154,-837.3321163,0.0001,2]
[342400922,1731795045718,-2082.9365688,0.0001,2]
[342400923,1731795045729,-409.14193754,0.0001,2]
[342400924,1731795045741,-550.31858725,0.0001,2]
[342400925,1731795045752,-3690.46625153,0.0001,2]
[342400926,1731795045763,-295.25514135,0.0001,2]
[342400927,1731795045773,-1415.44956061,0.0001,2]
[342400928,1731795045784,-11369.00907416,0.0001,2]
[342400929,1731795045795,-13770.93784062,0.0001,2]
[342400930,1731795045806,-633.18255,0.0001,2]
[342400931,1731795045817,-1701.5,0.0001,2]
[342400932,1731795045828,-1921.16759352,0.0001,2]
[342400933,1731795045839,-2272.98633876,0.0001,2]
[342400934,1731795045851,-2420.86061955,0.0001,2]
[342400935,1731795045863,-4093.21392897,0.0001,2]
[342400936,1731795045874,-1042.4337992,0.0001,2]
[342400937,1731795045888,-4283.74000465,0.0001,2]
[342400938,1731795045898,-8888.09487666,0.0001,2]
[342400939,1731795045909,-8813.61514324,0.0001,2]
[342400940,1731795045943,-18.99217937,0.0001,2]
[342400941,1731795045953,-674.79429573,0.0001,2]
[342400942,1731795045965,-4545.31242003,0.0001,2]
[342400943,1731795045975,-431.22961645,0.0001,2]
[342400944,1731795045983,-134525.51177627,0.0001,2]
[342400945,1731795045993,-10391.97917367,0.0001,2]
[342400946,1731795046001,-378.73957516,0.0001,2]
[342400947,1731795046009,-438.217861,0.0001,2]
[342400948,1731795046018,-400.0,0.0001,2]
[342400949,1731795046028,-17047.25616546,0.0001,2]
[342400950,1731795046041,-2283.42218229,0.0001,2]
[342400951,1731795046053,-2479.97084612,0.0001,2]
[342400952,1731795046064,-1210.82825412,0.0001,2]
[342400954,1731795046075,-596.41718121,0.0001,2]
[342400955,1731795046086,-873.74712415,0.0001,2]
[342400956,1731795046108,-557.8322401,0.0001,2]
[342400957,1731795046120,-706.00898571,0.0001,2]
[342400958,1731795046131,-383.87296915,0.0001,2]
[342400959,1731795046142,-635.84286283,0.0001,2]
[342400960,1731795046153,-1529.65936875,0.0001,2]
[342400961,1731795046164,-805.58226419,0.0001,2]
[342400962,1731795046180,-618.3903605,0.0001,2]
[342400963,1731795046191,-4032.80043313,0.0001,2]
[342400965,1731795046202,-6172.81784563,0.0001,2]
[342400966,1731795046213,-677.10089494,0.0001,2]
[342400967,1731795223785,500.0,0.00022766,120]
[342400977,1731795315242,834.13,8.219e-05,2]
[342400982,1731795893708,202.592,0.0002378,60]
[342400990,1731796053970,792.42,8.219e-05,2]
[342401093,1731796231886,-250.0,9.209e-05,2]
[342401094,1731796231896,-250.0,9.209e-05,2]
[342401095,1731796231906,-1000.0,9.335e-05,2]
[342401097,1731796231915,-180.6,9.35e-05,2]
[342401099,1731796231925,-169.38,9.38e-05,2]
[342401100,1731796231934,-200.0,9.6e-05,2]
[342401101,1731796231943,-371.28105739,9.888e-05,2]
[342401102,1731796231955,-519.86839141,9.888e-05,2]
[342401103,1731796231966,-108.8505502,9.888e-05,2]
[342401104,1731796231977,-433.27,9.89e-05,2]
[342401105,1731796231987,-187.09,9.89e-05,2]
[342401106,1731796231997,-865.44,9.89e-05,2]
[342401107,1731796232008,-150.0,9.89e-05,2]
[342401108,1731796232017,-433.27,9.89e-05,2]
[342401109,1731796232027,-150.0,9.89e-05,2]
[342401110,1731796232038,-433.27,9.89e-05,2]
[342401111,1731796232047,-150.0,9.89e-05,2]
[342401112,1731796232057,-433.27,9.89e-05,2]
[342401113,1731796232067,-150.0,9.89e-05,2]
[342401114,1731796232078,-432.13,9.89e-05,2]
[342401115,1731796232088,-150.0,9.89e-05,2]
[342401116,1731796232099,-150.0,9.89e-05,2]
[342401117,1731796232108,-150.0,9.899e-05,2]
[342401118,1731796232117,-15205.1547,9.9e-05,2]
[342401119,1731796232127,-3018.416,9.9e-05,2]
[342401120,1731796232135,-18385.564,9.9e-05,2]
[342401121,1731796232144,-1000.8756,9.9e-05,2]
[342401122,1731796232153,-242250.6117341,9.9e-05,2]
[342401123,1731796232162,-433.27,9.9e-05,2]
[342401124,1731796232172,-150.0,9.9e-05,2]
[342401125,1731796232181,-150.0,9.9e-05,2]
[342401126,1731796232190,-500.0,9.92e-05,2]
[342401127,1731796232199,-1285.0,9.973e-05,2]
[342401128,1731796232208,-500.0,9.973e-05,2]
[342401129,1731796232217,-500.0,9.973e-05,2]
[342401130,1731796232227,-174.86184421,9.999e-05,2]
[342401131,1731796232239,-162515.4555716,0.0001,2]
[342401132,1731796232268,-2375.16069498,0.0001,2]
[342401133,1731796232279,-17430.34,0.0001,2]
[342401134,1731796232291,-6023.72737881,0.0001,2]
[342401135,1731796232301,-6674.23832769,0.0001,2]
[342401136,1731796232312,-3672.96078385,0.0001,2]
[342401137,1731796232566,-3099.35793272,0.0001,2]
[342401138,1731796232575,-3145.12558741,0.0001,2]
[342401139,1731796232588,-885.45066884,0.0001,2]
[342401140,1731796232599,-4138.09501452,0.0001,2]
[342401141,1731796232612,-673.06812465,0.0001,2]
[342401142,1731796232635,-6220.0,0.0001,2]
[342401143,1731796234929,-174.8618442,9.999e-05,2]
[342401144,1731796234939,-25402.24842104,0.0001,2]
[342401145,1731796234950,-5347.16080006,0.0001,2]
[342401146,1731796234974,-2275.93278,0.0001,2]
[342401147,1731796234986,-16767.41298066,0.0001,2]
[342401148,1731796234996,-1041.76047077,0.0001,2]
[342401149,1731796235008,-397.92779334,0.0001,2]
[342401150,1731796235020,-112813.75099826,0.0001,2]
[342401151,1731796235029,-224.81778369,0.0001,2]
[342401152,1731796235039,-436296.62683926,0.0001,2]
[342401153,1731796235049,-1615.03160098,0.0001,2]
[342401159,1731796237883,-9688.74900862,0.0001,2]
[342401161,1731796237920,-814.18564154,0.0001,2]
[342401162,1731796237932,-3042.02232487,0.0001,2]
[342401163,1731796237955,-699.71368841,0.0001,2]
[342401164,1731796237988,-514.69242,0.0001,2]
[342401165,1731796238022,-299.58797889,0.0001,2]
[342401166,1731796238055,-408.0085986,0.0001,2]
[342401167,1731796238067,-591.9914014,0.0001,2]
[342401168,1731796238087,-29145.58598299,0.0001,2]
[342401170,1731796238300,-3096282.64474875,0.0001,2]
[342401172,1731796238309,-297.09462196,0.0001,2]
[342401174,1731796238318,-1459.73,0.0001,2]
[342401175,1731796238328,-1000.0,0.0001,2]
[342401177,1731796238338,-1000.0,0.0001,2]
[342401179,1731796238347,-850.5674,0.0001,2]
[342401181,1731796238357,-250.0,0.0001,2]
[342401183,1731796238366,-250.0,0.0001,2]
[342401185,1731796238376,-250.0,0.0001,2]
[342401187,1731796238390,-250.0,0.0001,2]
[342401189,1731796238399,-250.0,0.0001,2]
[342401191,1731796238408,-250.0,0.0001,2]
[342401193,1731796238417,-250.0,0.0001,2]
[342401194,1731796238427,-250.0,0.0001,2]
[342401195,1731796238436,-250.0,0.0001,2]
[342401196,1731796238446,-1646.8109784,0.0001,2]
[342401197,1731796238455,-4730.31394988,0.0001,2]
[342401199,1731796238464,-210576.58872166,0.0001,2]
[342401214,1731796240064,-3222.43197,0.0001,2]
[342401215,1731796240320,-6377.32897047,0.0001,2]
[342401246,1731796242988,-6189.62130484,0.0001,2]
[342401247,1731796243000,-1365.02565941,0.0001,2]
[342401248,1731796243011,-3975.00703892,0.0001,2]
[342401249,1731796243022,-11954.21368636,0.0001,2]
[342401251,1731796243034,-3956.37602675,0.0001,2]
[342401252,1731796243044,-8963.19649311,0.0001,2]
[342401253,1731796243055,-573.40139971,0.0001,2]
[342401256,1731796243175,-27739.32995124,0.0001,2]
[342401312,1731796245912,-15613.15912407,0.0001,2]
[342401317,1731796246133,-16639.90493478,0.0001,2]
[342401321,1731796246261,-92241.86588863,0.0001,2]
[342401322,1731796246271,-20796.23311137,0.0001,2]
[342402487,1731796768074,752.79,8.219e-05,2]
[342402489,1731797020986,500.0,8.153e-05,2]
[342402495,1731797345159,-300.0,8.854e-05,2]
[342402496,1731797345182,-299.55,8.88e-05,2]
[342402509,1731797405875,2000.0,8.854e-05,2]
[342402510,1731797417548,250.0,8.86e-05,2]
[342402518,1731797432303,-1500.0,9.069e-05,2]
[342402519,1731797432314,-700.0,9.115e-05,2]
[342402520,1731797432363,-300.0,9.115e-05,2]
[342402521,1731797432373,-150.0,9.288e-05,2]
[342402522,1731797432382,-300.0,9.322e-05,2]
[342402523,1731797432393,-15683.14,9.323e-05,2]
[342402524,1731797432403,-355.97,9.367e-05,2]
[342402525,1731797432413,-152.956765,9.537e-05,2]
[342402526,1731797432423,-1500.0,9.632e-05,2]
[342402527,1731797432432,-152.956765,9.656e-05,2]
[342402528,1731797432442,-29999.99,9.67e-05,2]
[342402529,1731797432452,-150.0,9.677e-05,2]
[342402530,1731797432461,-433.27,9.678e-05,2]
[342402531,1731797432471,-433.27,9.678e-05,2]
[342402532,1731797432480,-150.0,9.719e-05,2]
[342402533,1731797432490,-150.0,9.725e-05,2]
[342402534,1731797432500,-150.0,9.73e-05,2]
[342402535,1731797432510,-150.0,9.756e-05,2]
[342402536,1731797432520,-150.0,9.769e-05,2]
[342402538,1731797432529,-152.956765,9.776e-05,2]
[342402540,1731797432539,-150.0,9.789e-05,2]
[342402542,1731797432549,-150.0,9.799e-05,2]
[342402544,1731797432558,-150.0,9.803e-05,2]
[342402545,1731797432568,-150.0,9.838e-05,2]
[342402546,1731797432578,-150.0,9.851e-05,2]
[342402547,1731797432588,-150.0,9.858e-05,2]
[342402548,1731797432597,-150.0,9.87e-05,2]
[342402550,1731797432607,-150.0,9.884e-05,2]
[342402551,1731797432619,-150.0,9.888e-05,2]
[342402552,1731797432630,-152.956765,9.895e-05,2]
[342402553,1731797432639,-3011.9739,9.9e-05,2]
[342402554,1731797432648,-1977.347,9.909e-05,2]
[342402556,1731797432659,-175.78585818,9.909e-05,2]
[342402557,1731797432668,-2597.21599986,9.91e-05,2]
[342402559,1731797432678,-150.0,9.911e-05,2]
[342402560,1731797432688,-150.0,9.936e-05,2]
[342402561,1731797432697,-150.0,9.943e-05,2]
[342402562,1731797432706,-500.0,9.973e-05,2]
[342402563,1731797432716,-500.0,9.973e-05,2]
[342402564,1731797432726,-150.0,9.98e-05,2]
[342402565,1731797432736,-150.0,9.981e-05,2]
[342402566,1731797432745,-299.55,9.99e-05,2]
[342402567,1731797432755,-150.0,9.99e-05,2]
[342402568,1731797432766,-150.0,9.991e-05,2]
[342402569,1731797432776,-2122.4122926,9.993e-05,2]
[342402570,1731797432787,-735.7348296,9.993e-05,2]
[342402571,1731797432797,-30000.0,0.0001,2]
[342402572,1731797432807,-3970.1176124,0.0001,2]
[342402573,1731797432817,-71177.51883064,0.0001,2]
[342402574,1731797432829,-253.2750005,0.0001,2]
[342402575,1731797432855,-10707.76786055,0.0001,2]
[342402577,1731797438196,-2191.68978481,0.0001,2]
[342402578,1731797438208,-13750.30614883,0.0001,2]
[342402579,1731797438219,-384.0,0.0001,2]
[342402580,1731797438257,-255.53745705,0.0001,2]
[342402581,1731797438314,-179574.87400815,0.0001,2]
[342402582,1731797438323,-3140518.8764125,0.0001,2]
[342402583,1731797438372,-941.18345201,0.0001,2]
[342402585,1731797438543,-5014.46630174,0.0001,2]
[342402586,1731797438555,-3635.30132812,0.0001,2]
[342402713,1731797440126,-259.69051261,0.0001,2]
[342402724,1731797440199,-5281.9,0.0001,2]
[342402726,1731797440215,-12146.01999998,0.0001,2]
[342402734,1731797440277,-3185.52,0.0001,2]
[342402736,1731797440289,-271.26894,0.0001,2]
[342402738,1731797440300,-597.5579386,0.0001,2]
[342402744,1731797440347,-382.14470905,0.0001,2]
[342402747,1731797440358,-551.53980006,0.0001,2]
[342403050,1731797443248,-6635.97743937,0.0001,2]
[342403052,1731797443259,-9775.76225982,0.0001,2]
[342403054,1731797443300,-680.61532645,0.0001,2]
[342403325,1731797446157,-601.05956758,0.0001,2]
[342403327,1731797446169,-2630.94,0.0001,2]
[342403342,1731797446293,-1000.0,0.0001,2]
[342403351,1731797446369,-935.74125979,0.0001,2]
[342404246,1731797530249,300.0,8.969e-05,2]
[342404247,1731797559229,715.15,8.219e-05,2]
[342404248,1731797624115,500.0,8.153e-05,2]
[342404249,1731798048591,1026.47828271,0.00024,60]
[342404250,1731798230685,500.0,8.088e-05,2]
[342404251,1731798370447,2689.962818,8.178e-05,2]
[342404252,1731798443116,-300.0,8.559e-05,2]
[342404253,1731798443139,-564.38485549,8.56e-05,2]
[342404267,1731798546132,-284.78,8.507e-05,2]
[342404268,1731798546158,-300.0,8.515e-05,2]
[342404272,1731798546181,-336.00670793,8.516e-05,2]
[342404274,1731798546205,-6618.09682307,8.516e-05,2]
[342404277,1731798550348,-7057.41317693,8.516e-05,2]
[342404278,1731798550800,-286.95,8.536e-05,2]
[342404279,1731798550823,-1075.86995082,8.536e-05,2]
[342404280,1731798554104,-367.84150232,8.536e-05,2]
[342404281,1731798554129,-165.29,8.538e-05,2]
[342404282,1731798554150,-14610.34852437,8.56e-05,2]
[342404283,1731798554179,-8725.26662014,8.56e-05,2]
[342404284,1731798554200,-1000.0,8.565e-05,2]
[342404285,1731798554221,-1049.36,8.579e-05,2]
[342404286,1731798554242,-250.0,8.595e-05,2]
[342404287,1731798554266,-2000.0,8.635e-05,2]
[342404291,1731798580644,250.0,8.675e-05,2]
[342404309,1731798632501,-162.13,9.088e-05,2]
[342404310,1731798632511,-162.13,9.093e-05,2]
[342404311,1731798632520,-162.13,9.097e-05,2]
[342404312,1731798632531,-162.13,9.102e-05,2]
[342404313,1731798632540,-162.13,9.106e-05,2]
[342404314,1731798632552,-162.13,9.111e-05,2]
[342404315,1731798632561,-162.13,9.115e-05,2]
[342404316,1731798632572,-162.13,9.12e-05,2]
[342404317,1731798632582,-335.49,9.124e-05,2]
[342404318,1731798632592,-162.13,9.124e-05,2]
[342404319,1731798632601,-162.13,9.129e-05,2]
[342404320,1731798632611,-162.13,9.133e-05,2]
[342404321,1731798632620,-448.36,9.14e-05,2]
[342404322,1731798632630,-432.72,9.241e-05,2]
[342404323,1731798632640,-432.63,9.241e-05,2]
[342404324,1731798632650,-150.0,9.378e-05,2]
[342404325,1731798632659,-150.0,9.415e-05,2]
[342404326,1731798632668,-166.16,9.524e-05,2]
[342404327,1731798632677,-1638.88,9.566e-05,2]
[342404328,1731798632687,-284.78,9.571e-05,2]
[342404329,1731798632696,-200.0,9.6e-05,2]
[342404330,1731798632705,-1000.0,9.635e-05,2]
[342404331,1731798632714,-2794.10213123,9.863e-05,2]
[342404332,1731798632725,-13644.0,9.868e-05,2]
[342404333,1731798632734,-5935.0,9.868e-05,2]
[342404334,1731798632743,-150.0,9.868e-05,2]
[342404335,1731798632753,-1160.0,9.868e-05,2]
[342404336,1731798632762,-12305.24499877,9.873e-05,2]
[342404337,1731798632774,-575.0,9.873e-05,2]
[342404338,1731798632785,-7437.52260123,9.873e-05,2]
[342404339,1731798632794,-2317.8462,9.873e-05,2]
[342404340,1731798632806,-6104.675,9.9e-05,2]
[342404341,1731798632815,-557.4671854,9.91e-05,2]
[342404342,1731798632824,-2242.03044774,9.91e-05,2]
[342404343,1731798632834,-795.0,9.973e-05,2]
[342404344,1731798632843,-7600.71138363,9.973e-05,2]
[342404345,1731798632855,-103380.28861637,9.973e-05,2]
[342404346,1731798632864,-87839.0,9.973e-05,2]
[342404347,1731798632874,-500.0,9.973e-05,2]
[342404348,1731798632883,-150.0,9.988e-05,2]
[342404349,1731798632893,-1465.7661855,9.992e-05,2]
[342404350,1731798632902,-3278.1165336,9.992e-05,2]
[342404351,1731798632911,-1536.1649915,9.993e-05,2]
[342404352,1731798632920,-1606.5637976,9.993e-05,2]
[342404353,1731798632929,-3435.5601234,9.993e-05,2]
[342404354,1731798632939,-3593.0037132,9.993e-05,2]
[342404355,1731798632948,-8862.96,9.999e-05,2]
[342404356,1731798632958,-3910.56584822,0.0001,2]
[342404357,1731798632967,-196155.06131757,0.0001,2]
[342404358,1731798632976,-224.81778368,0.0001,2]
[342404359,1731798632985,-557355.32042364,0.0001,2]
[342404360,1731798633000,-92555760.08766043,0.0001,2]
[342404361,1731798633009,-1000.0,0.0001,2]
[342404362,1731798633019,-1500.0,0.0001,3]
[342404363,1731798633029,-1000.0,0.0001,2]
[342404364,1731798633039,-5800.0,0.0001,2]
[342404365,1731798633048,-500.13169046,0.0001,2]
[342404366,1731798633061,-520992.66392611,0.0001,2]
[342404496,1731798638410,-1091.0,9.868e-05,2]
[342404497,1731798638420,-500.0,9.973e-05,2]
[342404498,1731798638429,-160.57572253,9.973e-05,2]
[342404499,1731798638439,-2400.46696346,0.0001,2]
[342404500,1731798638488,-2258.66730492,0.0001,2]
[342404501,1731798638501,-7200.0,0.0001,2]
[342404502,1731798638567,-47860.21417063,0.0001,2]
[342404503,1731798638768,-3462030.85722636,0.0001,2]
[342404563,1731798640491,-33327.73431919,0.0001,2]
[342404564,1731798640503,-314.01735568,0.0001,2]
[342404589,1731798643288,-16081.89230979,0.0001,2]
[342404590,1731798643299,-1914.02,0.0001,2]
[342404591,1731798643351,-5252.61891643,0.0001,2]
[342404592,1731798643444,203.57,0.00023,120]
[342404593,1731798643460,-7415.3020291,0.0001,2]
[342404594,1731798643480,-50130.70468253,0.0001,2]
[342404595,1731798643495,-22962.09038652,0.0001,2]
[342404596,1731798643648,-1278167.78322761,0.0001,2]
[342404597,1731798643660,-207255.62499161,0.0001,2]
[342404611,1731798646736,-611.49576995,0.0001,2]
[342404612,1731798646748,-8708.6,0.0001,2]
[342404613,1731798646812,-624.16915132,0.0001,2]
[342404614,1731798697375,500.0,9e-05,2]
[342404615,1731798698137,500.0,9e-05,2]
[342404616,1731798699381,500.0,9e-05,2]
[342404617,1731798699674,423.69,9e-05,2]
[342404618,1731798718054,500.0,9e-05,2]
[342404619,1731798718815,500.0,9e-05,2]
[342404620,1731798719581,500.0,9e-05,2]
[342404621,1731798720527,500.0,9e-05,2]
[342404622,1731798721362,500.0,9e-05,2]
[342404623,1731798722135,500.0,9e-05,2]
[342404624,1731798722900,500.0,9e-05,2]
[342404625,1731798723701,500.0,9e-05,2]
[342404626,1731798724448,500.0,9e-05,2]
[342404627,1731798725205,500.0,9e-05,2]
[342404628,1731798725955,500.0,9e-05,2]
[342404629,1731798726733,500.0,9e-05,2]
[342404630,1731798727491,500.0,9e-05,2]
[342404631,1731798728233,500.0,9e-05,2]
[342404632,1731798728998,500.0,9e-05,2]
[342404633,1731798730829,500.0,9e-05,2]
[342404634,1731798731529,500.0,9e-05,2]
[342404635,1731798732387,500.0,9e-05,2]
[342404636,1731798733168,500.0,9e-05,2]
[342404637,1731798733911,500.0,9e-05,2]
[342404638,1731798734777,500.0,9e-05,2]
[342404639,1731798735505,500.0,9e-05,2]
[342404640,1731798736256,500.0,9e-05,2]
[342404641,1731798737003,500.0,9e-05,2]
[342404642,1731798737948,500.0,9e-05,2]
[342404643,1731798738511,500.0,9e-05,2]
[342404644,1731798739323,500.0,9e-05,2]
[342404645,1731798785575,791.4,8.219e-05,2]
[342404648,1731798802760,-500.0,9e-05,2]
[342404649,1731798802784,-500.0,9e-05,2]
[342404650,1731798802807,-500.0,9e-05,2]
[342404651,1731798802830,-500.0,9e-05,2]
[342404652,1731798802853,-315.04,9e-05,2]
[342404653,1731798802875,-2000.0,9.185e-05,2]
[342404654,1731798802898,-1679.51,9.348e-05,2]
[342404655,1731798802922,-200.0,9.5e-05,3]
[342404656,1731798802946,-500.0,9.6e-05,3]
[342404657,1731798802972,-700.0,9.7e-05,3]
[342404658,1731798802998,-150.0,9.741e-05,2]
[342404659,1731798803021,-150.0,9.742e-05,2]
[342404660,1731798803044,-1000.0,9.8e-05,3]
[342404661,1731798803067,-1912.7607,9.873e-05,2]
[342404662,1731798803090,-17341.8771,9.873e-05,2]
[342404663,1731798803114,-5982.0838,9.873e-05,2]
[342404664,1731798803137,-1000.0,9.873e-05,2]
[342404665,1731798803159,-2500.0,9.873e-05,2]
[342404666,1731798803735,-383.5355,9.873e-05,2]
[342404667,1731798803785,-4083.1507,9.9e-05,2]
[342404668,1731798803809,-1545.724809,9.9e-05,2]
[342404669,1731798803832,-1200.0,9.9e-05,3]
[342404670,1731798803856,-33503.317391,9.9e-05,2]
[342404671,1731798825855,500.0,8.153e-05,2]
[342404672,1731799002427,2500.0,0.00024,60]
[342404673,1731799032256,300.0,0.00013698,120]
[342404674,1731799032429,300.0,0.00014499,120]
[342404677,1731799159674,-4829.0,8.945e-05,2]
[342404678,1731799397319,1773.49,8.374e-05,2]
[342404679,1731799467060,4267.3,8.36e-05,2]
[342404680,1731799526480,156.84,8.219e-05,2]
[342404683,1731799552589,250.0,8.348e-05,2]
[342404684,1731799566069,347.12,8.345e-05,2]
[342404685,1731799619359,836.27,8.219e-05,2]
[342404700,1731799640291,-167.01,8.61e-05,2]
[342404701,1731799640315,-234.83436153,8.721e-05,2]
[342404702,1731799650094,-40.65563847,8.721e-05,2]
[342404703,1731799650116,-275.49,8.723e-05,2]
[342404704,1731799650138,-275.49,8.725e-05,2]
[342404705,1731799650160,-275.49,8.728e-05,2]
[342404706,1731799650182,-275.49,8.73e-05,2]
[342404707,1731799650203,-275.49,8.732e-05,2]
[342404708,1731799650224,-275.49,8.734e-05,2]
[342404709,1731799650246,-275.49,8.737e-05,2]
[342404710,1731799650267,-23.58874096,8.739e-05,2]
[342404711,1731799652135,-251.90125904,8.739e-05,2]
[342404712,1731799652162,-275.49,8.741e-05,2]
[342404713,1731799652184,-275.49,8.744e-05,2]
[342404714,1731799652207,-275.49,8.746e-05,2]
[342404715,1731799652230,-130.54000621,8.748e-05,2]
[342404716,1731799656117,-144.94999379,8.748e-05,2]
[342404717,1731799656139,-275.49,8.751e-05,2]
[342404718,1731799656164,-275.49,8.753e-05,2]
[342404719,1731799656186,-275.49,8.755e-05,2]
[342404720,1731799656207,-275.49,8.757e-05,2]
[342404721,1731799656229,-275.49,8.76e-05,2]
[342404722,1731799656251,-275.49,8.762e-05,2]
[342404723,1731799656272,-275.49,8.764e-05,2]
[342404724,1731799656292,-416.49705849,8.782e-05,2]
[342404725,1731799681856,250.0,8.491e-05,2]
[342404726,1731799749121,-191.82,8.506e-05,2]
[342404727,1731799749142,-500.0,8.553e-05,2]
[342404728,1731799749162,-5733.72,8.767e-05,2]
[342404729,1731799749183,-119.54294151,8.782e-05,2]
[342404730,1731799749204,-250.0,8.8e-05,2]
[342404731,1731799749226,-360.74,8.847e-05,2]
[342404732,1731799749247,-150.0,8.852e-05,2]
[342404733,1731799749268,-300.0,8.852e-05,2]
[342404734,1731799749288,-267.02,8.852e-05,2]
[342404735,1731799749309,-500.0,8.873e-05,2]
[342404736,1731799749329,-2996.26,8.882e-05,2]
[342404737,1731799749350,-397.52,8.911e-05,2]
[342404738,1731799749370,-9076.69,8.945e-05,2]
[342404739,1731799749391,-1012.35689516,9e-05,2]
[342404740,1731799749411,-1841.45709467,9e-05,2]
[342404778,1731799831497,-166.16,9.007e-05,2]
[342404781,1731799831507,-751.45691343,9.031e-05,2]
[342404784,1731799831520,-248.54308657,9.031e-05,2]
[342404786,1731799831533,-967.93910124,9.188e-05,2]
[342404788,1731799831544,-884.48089876,9.188e-05,2]
[342404790,1731799831555,-726.83530122,9.212e-05,2]
[342404793,1731799831575,-273.16469878,9.212e-05,2]
[342404795,1731799831585,-300.0,9.212e-05,2]
[342404797,1731799831595,-1050.07530122,9.213e-05,2]
[342404800,1731799831606,-22849.92469878,9.213e-05,2]
[342404802,1731799831616,-1674.574,9.306e-05,2]
[342404803,1731799831626,-179.66,9.459e-05,2]
[342404804,1731799831635,-200.0,9.6e-05,2]
[342404805,1731799831645,-150.0,9.669e-05,2]
[342404806,1731799831654,-4370.16,9.67e-05,2]
[342404807,1731799831665,-299.99,9.67e-05,2]
[342404808,1731799831674,-1437.35,9.67e-05,2]
[342404809,1731799831684,-608.12,9.67e-05,2]
[342404810,1731799831693,-3717.71,9.67e-05,2]
[342404811,1731799831703,-227.91,9.67e-05,2]
[342404812,1731799831712,-1441.5028,9.701e-05,2]
[342404813,1731799831722,-950.63499922,9.713e-05,2]
[342404814,1731799831733,-150.0,9.742e-05,2]
[342404815,1731799831742,-150.0,9.762e-05,2]
[342404816,1731799831753,-150.0,9.811e-05,2]
[342404817,1731799831762,-150.0,9.812e-05,2]
[342404818,1731799831772,-67369.87788276,9.88e-05,2]
[342404819,1731799831793,-1662.10062447,9.88e-05,2]
[342404820,1731799831805,-450.037073,9.88e-05,2]
[342404821,1731799831838,-471.55435349,9.88e-05,2]
[342404822,1731799831860,-691.27745782,9.88e-05,2]
[342404823,1731799831876,-8095.19156721,9.88e-05,2]